Workbook

Sheet MSU
B1: Juuso Tajakka | E1: 8.10.1996 Korpilahti
B2: SUPERPESIS | E2: Runkosarja | I2: Kärkilyönnit (KL), pesänvälit | P2: Runkosarja TOP-30 | U2: Ylempi loppusarja | AB2: Ylempi loppusarja TOP-10 | AG2: Play off, voitot, voittoprosentti | AL2: Arvo-ottelut | AO2: Mitalit
B3: Vuosi | C3: Sija | D3: Seura | E3: OTT | F3: KUN | G3: LÖI | H3: TOI | I3: KL | J3: 0 > 1 | K3: 1 > 2 | L3: 2 > 3 | M3: 3 > k | N3: KL-% | P3: LÖI | Q3: TOI | R3: L+T | S3: KL | U3: OTT | V3: KUN | W3: LÖI | X3: TOI | Y3: KL | Z3: KL-% | AB3: LÖI | AC3: TOI | AD3: L+T | AE3: KL | AG3: Puolivälierät | AH3: Välierät | AI3: Pronssi | AJ3: Finaalit | AL3: IL | AM3: LL | AN3: hSM | AO3: K | AP3: H | AQ3: P
B4: 2014 | C4: 7. | D4: Kiri 2 | F4: suomensarja | AA4: 0
B5: 2015 | C5: 4. | D5: Kiri 2 | F5: suomensarja | AA5: 0
B6: 2016 | C6: 5. | D6: Kiri 2 | F6: suomensarja | AA6: 0
B7: 2016 | C7: 10. | D7: LieKi | F7: ykköspesis | AA7: 0
B8: 2017 | C8: 5. | D8: Kiri | F8: ykköspesis | AA8: 0
B9: 2018 | C9: 2. | D9: Lohi | F9: suomensarja | AA9: 0
B10: 2019
B11: 2020 | C11: 1. | D11: Lohi | F11: suomensarja | AA11: 0
B12: 2021 | C12: 2. | D12: Lohi | F12: ykköspesis | AA12: 0
B13: 2022 | C13: 6. | D13: Lohi | F13: ykköspesis | AA13: 0
B14: Yhteensä | E14: =SUM(E7:E13) -> 0 | F14: 0 | G14: 0 | H14: 0 | I14: 0 | J14: 0 | K14: 0 | L14: 0 | M14: 0 | N14: 0.0 % | O14: =SUM(O7:O13) -> 0 | P14: 0-0-0 | Q14: 0-0-0 | R14: 0-0-0 | S14: 0-0-0 | U14: =SUM(U4:U13)-U5 -> 0 | V14: =SUM(V4:V13)-V5 -> 0 | W14: =SUM(W4:W13)-W5 -> 0 | X14: =SUM(X4:X13)-X5 -> 0 | Y14: =SUM(Y4:Y13)-Y5 -> 0 | Z14: =PRODUCT(N20) -> 0.0 % | AA14: =SUM(AA3:AA13) -> 0 | AB14: 0-0-0 | AC14: 0-0-0 | AD14: 0-0-0 | AE14: 0-0-0 | AG14: 0/0 | AH14: 0/0 | AI14: 0/0 | AJ14: 0/0 | AL14: =SUM(AL4:AL13) -> 0 | AM14: 0 | AN14: 0 | AO14: 0 | AP14: 0 | AQ14: 0
AG15: 0.0 % | AH15: 0.0 % | AI15: 0.0 % | AJ15: 0.0 %
B16: Pesispörssi | D16: =SUM(F14:H14)+((I14-F14-G14)/3)+(E14/3)+(AL14*25)+(AM14*25)+(AN14*10)+(AO14*25)+(AP14*20)+(AQ14*15) -> 0.0
B18: URA SUPERISSA | E18: OTT | F18: KUN | G18: LÖI | H18: TOI | I18: KL | K18: ka/L | L18: ka/T | M18: ka/KL | N18: KL-% | P18: ENSIMMÄISET RUNKOSARJASSA | AG18: ENSIMMÄISET PUDOTUSPELEISSÄ | AL18: YLEISÖ
B19: Runkosarja | O19: =PRODUCT(O14) -> 0 | P19: Ottelu | AG19: Ottelu
B20: Ylempi loppusarja | P20: Lyöty | AG20: Lyöty
B21: Alempi loppusarja | E21: 3 | F21: 0 | G21: 1 | H21: 0 | I21: 3 | K21: 3.00 | L21: 0.00 | M21: 1.00 | N21: =PRODUCT(I21/O21) -> 20.0 % | O21: 15 | P21: Tuotu | AG21: Tuotu
B22: KAIKKI | E22: =SUM(E19:E21) -> 3 | F22: =SUM(F19:F21) -> 0 | G22: =SUM(G19:G21) -> 1 | H22: =SUM(H19:H21) -> 0 | I22: =SUM(I19:I21) -> 3 | K22: =PRODUCT((F22+G22)/E22) -> 0.33 | L22: =PRODUCT(H22/E22) -> 0.00 | M22: =PRODUCT(I22/E22) -> 1.00 | N22: =PRODUCT(I22/O22) -> 20.0 % | O22: =SUM(O19:O21) -> 15 | P22: Kunnari | AG22: Kunnari
B24: Seurat | D24: Kiri = Jyväskylän Kiri (1930), kasvattajaseura
D25: LieKi = Lievestuoreen Kisa (1927)
D26: Lohi = Jyväskylän Lohi (1924)

Sheet MYP, MSS
B1: Juuso Tajakka | E1: 8.10.1996 Korpilahti
B2: YKKÖSPESIS | E2: Runkosarja | L2: Runkosarja TOP-10 | Q2: Jatkosarjat | X2: SUOMENSARJA | AA2: Runkosarja | AH2: Runkosarja TOP-10 | AM2: Jatkosarjat
B3: Vuosi | C3: Sija | D3: Seura | E3: OTT | F3: KUN | G3: LÖI | H3: TOI | I3: KL | J3: KL-% | L3: LÖI | M3: TOI | N3: L+T | O3: KL | Q3: OTT | R3: KUN | S3: LÖI | T3: TOI | U3: KL | V3: KL-% | X3: Vuosi | Y3: Sija | Z3: Seura | AA3: OTT | AB3: KUN | AC3: LÖI | AD3: TOI | AE3: KL | AF3: KL-% | AH3: LÖI | AI3: TOI | AJ3: L+T | AK3: KL | AM3: OTT | AN3: KUN | AO3: LÖI | AP3: TOI | AQ3: KL | AR3: KL-%
X4: 2014 | Y4: 7. | Z4: Kiri 2 | AA4: 14 | AB4: 1 | AC4: 9 | AD4: 1 | AE4: 24 | AF4: 42.9 % | AG4: 56
X5: 2015 | Y5: 4. | Z5: Kiri 2 | AA5: 15 | AB5: 0 | AC5: 20 | AD5: 0 | AE5: 37 | AF5: 39.4 % | AG5: 94
B6: 2016 | C6: 10. | D6: LieKi | E6: 2 | F6: 0 | G6: 1 | H6: 0 | I6: 3 | J6: 23.1 % | K6: 13 | X6: 2016 | Y6: 5. | Z6: Kiri 2 | AA6: 15 | AB6: 1 | AC6: 39 | AD6: 9 | AE6: 63 | AF6: 57.8 % | AG6: 109 | AH6: 4. | AJ6: 4.
B7: 2017 | C7: 5. | D7: Kiri | E7: 13 | F7: 0 | G7: 8 | H7: 0 | I7: 25 | J7: 34.2 % | K7: 73
X8: 2018 | Y8: 2. | Z8: Lohi | AA8: 11 | AB8: 3 | AC8: 19 | AD8: 3 | AE8: 37 | AF8: 51.4 % | AG8: =PRODUCT(AE8/AF8) -> 72 | AH8: 10. | AM8: 4 | AN8: 0 | AO8: 2 | AP8: 0 | AQ8: 6 | AR8: 35.3 % | AS8: =PRODUCT(AQ8/AR8) -> 17.00198356
X10: 2020 | Y10: 1. | Z10: Lohi | AA10: 8 | AB10: 2 | AC10: 24 | AD10: 4 | AE10: 30 | AF10: 49.2 % | AG10: 61 | AH10: 2. | AJ10: 2.
B11: 2021 | C11: 2. | D11: Lohi | E11: 18 | F11: 2 | G11: 37 | H11: 7 | I11: 59 | J11: 51.8 % | K11: 114 | L11: 9. | Q11: 3 | R11: 0 | S11: 4 | T11: 0 | U11: 8 | V11: 44.4 % | W11: 18
B12: 2022 | C12: 6. | D12: Lohi | E12: 19 | F12: 2 | G12: 26 | H12: 3 | I12: 43 | J12: 38.1 % | K12: 113
B13: YHTEENSÄ | E13: =SUM(E4:E12) -> 52 | F13: =SUM(F4:F12) -> 4 | G13: =SUM(G4:G12) -> 72 | H13: =SUM(H4:H12) -> 10 | I13: =SUM(I4:I12) -> 130 | J13: =PRODUCT(I13/K13) -> 41.5 % | K13: =SUM(K4:K12) -> 313 | Q13: =SUM(Q4:Q12) -> 3 | R13: =SUM(R4:R12) -> 0 | S13: =SUM(S4:S12) -> 4 | T13: =SUM(T4:T12) -> 0 | U13: =SUM(U4:U12) -> 8 | V13: =PRODUCT(U13/W13) -> 44.4 % | W13: =SUM(W4:W12) -> 18 | X13: YHTEENSÄ | AA13: =SUM(AA4:AA12) -> 63 | AB13: =SUM(AB4:AB12) -> 7 | AC13: =SUM(AC4:AC12) -> 111 | AD13: =SUM(AD4:AD12) -> 17 | AE13: =SUM(AE4:AE12) -> 191 | AF13: =PRODUCT(AE13/AG13) -> 48.7 % | AG13: =SUM(AG4:AG12) -> 392.0124562 | AM13: =SUM(AM4:AM12) -> 4 | AN13: =SUM(AN4:AN12) -> 0 | AO13: =SUM(AO4:AO12) -> 2 | AP13: =SUM(AP4:AP12) -> 0 | AQ13: =SUM(AQ4:AQ12) -> 6 | AR13: =PRODUCT(AQ13/AS13) -> 35.3 % | AS13: =SUM(AS4:AS12) -> 17.00198356
B15: KAIKKI OTTELUT | E15: OTT | F15: KUN | G15: LÖI | H15: TOI | I15: KL | J15: KL-% | L15: ka/L | M15: ka/T | N15: ka/l+t | O15: ka/kl | R15: Seurat | T15: Kiri = Jyväskylän Kiri (1930), kasvattajaseura
B16: SUPERPESIS | E16: 3 | F16: 0 | G16: 1 | H16: 0 | I16: 3 | J16: 20.0 % | K16: =PRODUCT(I16/J16) -> 15 | L16: =PRODUCT((F16+G16)/E16) -> 0.33 | M16: =PRODUCT(H16/E16) -> 0.00 | N16: =PRODUCT((F16+G16+H16)/E16) -> 0.33 | O16: =PRODUCT(I16/E16) -> 1.00 | T16: LieKi = Lievestuoreen Kisa (1927)
B17: YKKÖSPESIS | E17: =PRODUCT(E13+Q13) -> 55 | F17: =PRODUCT(F13+R13) -> 4 | G17: =PRODUCT(G13+S13) -> 76 | H17: =PRODUCT(H13+T13) -> 10 | I17: =PRODUCT(I13+U13) -> 138 | J17: =PRODUCT(I17/K17) -> 41.7 % | K17: =PRODUCT(K13+W13) -> 331 | L17: =PRODUCT((F17+G17)/E17) -> 1.45 | M17: =PRODUCT(H17/E17) -> 0.18 | N17: =PRODUCT((F17+G17+H17)/E17) -> 1.64 | O17: =PRODUCT(I17/E17) -> 2.51 | T17: Lohi = Jyväskylän Lohi (1924)
B18: SUOMENSARJA | E18: =PRODUCT(AA13+AM13) -> 67 | F18: =PRODUCT(AB13+AN13) -> 7 | G18: =PRODUCT(AC13+AO13) -> 113 | H18: =PRODUCT(AD13+AP13) -> 17 | I18: =PRODUCT(AE13+AQ13) -> 197 | J18: =PRODUCT(I18/K18) -> 48.2 % | K18: =PRODUCT(AG13+AS13) -> 409.0144398 | L18: =PRODUCT((F18+G18)/E18) -> 1.79 | M18: =PRODUCT(H18/E18) -> 0.25 | N18: =PRODUCT((F18+G18+H18)/E18) -> 2.04 | O18: =PRODUCT(I18/E18) -> 2.94
B19: YHTEENSÄ | E19: =SUM(E16:E18) -> 125 | F19: =SUM(F16:F18) -> 11 | G19: 190 | H19: 27 | I19: 338 | J19: =PRODUCT(I19/K19) -> 44.8 % | K19: =SUM(K16:K18) -> 755.0144398 | L19: =PRODUCT((F19+G19)/E19) -> 1.61 | M19: =PRODUCT(H19/E19) -> 0.22 | N19: =PRODUCT((F19+G19+H19)/E19) -> 1.82 | O19: =PRODUCT(I19/E19) -> 2.70
